[Event "Titled Tuesday Blitz April 11 Early 2023"]
[White "Manon-og, Ramon Jr."]
[Black "Mirzoev, Azer"]
[WhiteFideId "5200776"]
[BlackFideId "13400304"]
[WhiteElo "2393"]
[BlackElo "2525"]
[Result "0-1"]
[Round "08"]
[TimeControl "180+2"]
[Date "2023.04.11"]
[WhiteClock "0:00:07"]
[BlackClock "0:00:12"]

1. e4 {[%clk 0:03:00]}  c5 {[%clk 0:03:00]} 2. Nf3 {[%clk 0:02:59]}  e6 {[%clk 0:03:00]} 3. d4 {[%clk 0:02:59]}  cxd4 {[%clk 0:03:01]} 4. Nxd4 {[%clk 0:03:00]}  a6 {[%clk 0:03:01]} 5. c4 {[%clk 0:02:59]}  g6 {[%clk 0:02:58]} 6. Nc3 {[%clk 0:02:58]}  Bg7 {[%clk 0:02:58]} 7. Be3 {[%clk 0:02:58]}  Ne7 {[%clk 0:02:58]} 8. Bd3 {[%clk 0:02:58]}  d5 {[%clk 0:02:56]} 9. cxd5 {[%clk 0:02:57]}  exd5 {[%clk 0:02:56]} 10. O-O {[%clk 0:02:53]}  O-O {[%clk 0:02:56]} 11. Bc2 {[%clk 0:02:47]}  dxe4 {[%clk 0:02:37]} 12. Bxe4 {[%clk 0:02:40]}  Nd7 {[%clk 0:02:37]} 13. Re1 {[%clk 0:02:30]}  Nf6 {[%clk 0:02:37]} 14. Bf3 {[%clk 0:02:30]}  Ned5 {[%clk 0:02:36]} 15. Bg5 {[%clk 0:02:13]}  Nxc3 {[%clk 0:02:33]} 16. bxc3 {[%clk 0:02:14]}  h6 {[%clk 0:02:34]} 17. Bh4 {[%clk 0:02:13]}  Qc7 {[%clk 0:02:29]} 18. Qd2 {[%clk 0:02:13]}  Kh7 {[%clk 0:02:20]} 19. h3 {[%clk 0:02:11]}  Re8 {[%clk 0:02:02]} 20. Rxe8 {[%clk 0:01:55]}  Nxe8 {[%clk 0:02:02]} 21. Re1 {[%clk 0:01:55]}  Nf6 {[%clk 0:02:02]} 22. Bg3 {[%clk 0:01:53]}  Qd8 {[%clk 0:01:48]} 23. Qb2 {[%clk 0:01:37]}  Ra7 {[%clk 0:01:43]} 24. Qb3 {[%clk 0:01:36]}  Kg8 {[%clk 0:01:28]} 25. Be5 {[%clk 0:01:13]}  a5 {[%clk 0:01:17]} 26. Nb5 {[%clk 0:01:11]}  Ra6 {[%clk 0:01:17]} 27. a4 {[%clk 0:01:06]}  Re6 {[%clk 0:01:13]} 28. Re3 {[%clk 0:01:00]}  Qe7 {[%clk 0:00:57]} 29. Bd4 {[%clk 0:00:30]}  Rxe3 {[%clk 0:00:56]} 30. fxe3 {[%clk 0:00:30]}  Be6 {[%clk 0:00:49]} 31. c4 {[%clk 0:00:30]}  Ne8 {[%clk 0:00:44]} 32. Bd5 {[%clk 0:00:29]}  h5 {[%clk 0:00:33]} 33. c5 {[%clk 0:00:26]}  Bxd5 {[%clk 0:00:28]} 34. Qxd5 {[%clk 0:00:27]}  Bxd4 {[%clk 0:00:25]} 35. exd4 {[%clk 0:00:28]}  Nf6 {[%clk 0:00:24]} 36. Qf3 {[%clk 0:00:20]}  Kg7 {[%clk 0:00:16]} 37. Nd6 {[%clk 0:00:19]}  b6 {[%clk 0:00:16]} 38. Nc8 {[%clk 0:00:15]}  Qe1+ {[%clk 0:00:16]} 39. Kh2 {[%clk 0:00:15]}  bxc5 {[%clk 0:00:15]} 40. d5 {[%clk 0:00:11]}  Qe5+ {[%clk 0:00:15]} 41. Kg1 {[%clk 0:00:08]}  Qxd5 {[%clk 0:00:15]} 42. Nb6 {[%clk 0:00:08]}  Qd4+ {[%clk 0:00:12]} 43. Kh2 {[%clk 0:00:08]}  c4 {[%clk 0:00:12]} 44. Nc8 {[%clk 0:00:07]}  c3 {[%clk 0:00:12]} 0-1


[Site "https://www.chess.com"]

[Event "Titled Tuesday Blitz April 11 Early 2023"]
[White "Yurasova, Daria"]
[Black "Jarocka, Liwia"]
[WhiteFideId "34146919"]
[BlackFideId "21807558"]
[WhiteElo "2134"]
[BlackElo "2013"]
[Result "1-0"]
[Round "08"]
[TimeControl "180+2"]
[Date "2023.04.11"]
[WhiteClock "0:02:32"]
[BlackClock "0:02:25"]

1. d4 {[%clk 0:03:00]}  c5 {[%clk 0:02:57]} 2. d5 {[%clk 0:02:58]}  Nf6 {[%clk 0:02:56]} 3. Nf3 {[%clk 0:02:57]}  d6 {[%clk 0:02:57]} 4. Bg5 {[%clk 0:02:52]}  Nbd7 {[%clk 0:02:50]} 5. Nc3 {[%clk 0:02:49]}  g6 {[%clk 0:02:50]} 6. e4 {[%clk 0:02:47]}  Bg7 {[%clk 0:02:51]} 7. Be2 {[%clk 0:02:47]}  O-O {[%clk 0:02:50]} 8. O-O {[%clk 0:02:47]}  Rb8 {[%clk 0:02:49]} 9. Nd2 {[%clk 0:02:44]}  b5 {[%clk 0:02:45]} 10. Bxb5 {[%clk 0:02:40]}  Nxe4 {[%clk 0:02:41]} 11. Ndxe4 {[%clk 0:02:40]}  Rxb5 {[%clk 0:02:27]} 12. Nxb5 {[%clk 0:02:39]}  Ba6 {[%clk 0:02:25]} 13. c4 {[%clk 0:02:32]} 1-0


[Site "https://www.chess.com"]

[Event "Titled Tuesday Blitz April 11 Early 2023"]
[White "Namitbir Singh Walia"]
[Black "Andrews, Todd"]
[WhiteFideId "35071068"]
[BlackFideId "2012456"]
[WhiteElo "2239"]
[BlackElo "2338"]
[Result "1-0"]
[Round "08"]
[TimeControl "180+2"]
[Date "2023.04.11"]
[WhiteClock "0:00:05"]
[BlackClock "0:00:02"]

1. e4 {[%clk 0:03:00]}  e6 {[%clk 0:02:38]} 2. d4 {[%clk 0:02:59]}  d5 {[%clk 0:02:39]} 3. Nd2 {[%clk 0:02:56]}  Nc6 {[%clk 0:02:38]} 4. c3 {[%clk 0:02:53]}  e5 {[%clk 0:02:38]} 5. dxe5 {[%clk 0:02:49]}  dxe4 {[%clk 0:02:21]} 6. Qa4 {[%clk 0:02:31]}  Bf5 {[%clk 0:02:15]} 7. Nxe4 {[%clk 0:02:28]}  Qd5 {[%clk 0:02:13]} 8. Ng3 {[%clk 0:02:21]}  Qxe5+ {[%clk 0:02:11]} 9. Be3 {[%clk 0:02:21]}  O-O-O {[%clk 0:02:07]} 10. Nf3 {[%clk 0:02:19]}  Qf6 {[%clk 0:01:53]} 11. Bb5 {[%clk 0:01:49]}  Bd3 {[%clk 0:01:19]} 12. Bxc6 {[%clk 0:01:09]}  Qxc6 {[%clk 0:01:18]} 13. Qxc6 {[%clk 0:01:04]}  bxc6 {[%clk 0:01:18]} 14. Ne5 {[%clk 0:01:05]}  Bg6 {[%clk 0:01:17]} 15. Nxc6 {[%clk 0:01:03]}  Re8 {[%clk 0:01:14]} 16. Nxa7+ {[%clk 0:00:59]}  Kb7 {[%clk 0:01:13]} 17. Nb5 {[%clk 0:01:00]}  h5 {[%clk 0:01:03]} 18. O-O-O {[%clk 0:00:38]}  h4 {[%clk 0:01:02]} 19. Ne2 {[%clk 0:00:38]}  Nf6 {[%clk 0:00:55]} 20. Nf4 {[%clk 0:00:33]}  Be4 {[%clk 0:00:53]} 21. Rhg1 {[%clk 0:00:19]}  Ra8 {[%clk 0:00:50]} 22. a3 {[%clk 0:00:16]}  g5 {[%clk 0:00:40]} 23. Ne2 {[%clk 0:00:16]}  Nd5 {[%clk 0:00:35]} 24. Bxg5 {[%clk 0:00:14]}  h3 {[%clk 0:00:31]} 25. f3 {[%clk 0:00:13]}  Nb6 {[%clk 0:00:14]} 26. fxe4 {[%clk 0:00:12]}  hxg2 {[%clk 0:00:12]} 27. Rxg2 {[%clk 0:00:13]}  Nc4 {[%clk 0:00:11]} 28. Nf4 {[%clk 0:00:12]}  Rg8 {[%clk 0:00:07]} 29. Bf6 {[%clk 0:00:08]}  Bh6 {[%clk 0:00:07]} 30. Rf2 {[%clk 0:00:07]}  Rg4 {[%clk 0:00:06]} 31. Rdf1 {[%clk 0:00:05]}  Ne3 {[%clk 0:00:06]} 32. Be5 {[%clk 0:00:05]}  Nxf1 {[%clk 0:00:05]} 33. Rxf1 {[%clk 0:00:06]}  f6 {[%clk 0:00:05]} 34. Bxc7 {[%clk 0:00:07]}  Kc6 {[%clk 0:00:04]} 35. c4 {[%clk 0:00:07]}  Ra4 {[%clk 0:00:02]} 36. b3 {[%clk 0:00:06]}  Ra8 {[%clk 0:00:02]} 37. Kb2 {[%clk 0:00:06]}  Re8 {[%clk 0:00:02]} 38. Nd5 {[%clk 0:00:04]}  Rg2+ {[%clk 0:00:02]} 39. Kc3 {[%clk 0:00:03]}  Rxe4 {[%clk 0:00:03]} 40. Nd4+ {[%clk 0:00:03]}  Kd7 {[%clk 0:00:02]} 41. Nxf6+ {[%clk 0:00:03]}  Kxc7 {[%clk 0:00:02]} 42. Nxe4 {[%clk 0:00:04]}  Rxh2 {[%clk 0:00:02]} 43. Rf7+ {[%clk 0:00:04]}  Kd8 {[%clk 0:00:01]} 44. Ne6+ {[%clk 0:00:04]}  Kc8 {[%clk 0:00:02]} 45. Nd6+ {[%clk 0:00:05]}  Kb8 {[%clk 0:00:02]} 46. Rf8+ {[%clk 0:00:05]}  Ka7 {[%clk 0:00:02]} 47. Rf7+ {[%clk 0:00:05]}  Kb8 {[%clk 0:00:02]} 48. Kb4 {[%clk 0:00:05]} 1-0


[Site "https://www.chess.com"]

[Event "Titled Tuesday Blitz April 11 Early 2023"]
[White "Dwilewicz, Katarzyna"]
[Black "Baches Garcia, Guillermo"]
[WhiteFideId "1148486"]
[BlackFideId "2209764"]
[WhiteElo "2065"]
[BlackElo "2449"]
[Result "1-0"]
[Round "08"]
[TimeControl "180+2"]
[Date "2023.04.11"]
[WhiteClock "0:00:25"]
[BlackClock "0:00:12"]

1. e4 {[%clk 0:03:00]}  d5 {[%clk 0:03:00]} 2. exd5 {[%clk 0:03:00]}  Qxd5 {[%clk 0:03:01]} 3. Nf3 {[%clk 0:03:00]}  Nf6 {[%clk 0:03:00]} 4. d4 {[%clk 0:03:00]}  c6 {[%clk 0:02:59]} 5. Be2 {[%clk 0:02:58]}  Bf5 {[%clk 0:02:55]} 6. O-O {[%clk 0:02:58]}  e6 {[%clk 0:02:55]} 7. c4 {[%clk 0:02:58]}  Qa5 {[%clk 0:02:53]} 8. Nc3 {[%clk 0:02:58]}  Be7 {[%clk 0:02:50]} 9. Nh4 {[%clk 0:02:51]}  Bg6 {[%clk 0:02:43]} 10. Nxg6 {[%clk 0:02:51]}  hxg6 {[%clk 0:02:43]} 11. Bf4 {[%clk 0:02:51]}  Nh5 {[%clk 0:02:34]} 12. Bxh5 {[%clk 0:02:41]}  Qxh5 {[%clk 0:02:28]} 13. Qxh5 {[%clk 0:02:41]}  Rxh5 {[%clk 0:02:28]} 14. Rad1 {[%clk 0:02:33]}  Nd7 {[%clk 0:02:20]} 15. d5 {[%clk 0:02:33]}  exd5 {[%clk 0:01:55]} 16. cxd5 {[%clk 0:02:32]}  O-O-O {[%clk 0:01:55]} 17. dxc6 {[%clk 0:02:20]}  bxc6 {[%clk 0:01:54]} 18. Rfe1 {[%clk 0:02:21]}  Bb4 {[%clk 0:01:44]} 19. Re4 {[%clk 0:02:15]}  Bxc3 {[%clk 0:01:33]} 20. bxc3 {[%clk 0:02:15]}  Nf6 {[%clk 0:01:33]} 21. Rxd8+ {[%clk 0:02:09]}  Kxd8 {[%clk 0:01:34]} 22. Ra4 {[%clk 0:02:08]}  a5 {[%clk 0:01:22]} 23. f3 {[%clk 0:02:04]}  Rb5 {[%clk 0:01:12]} 24. Rd4+ {[%clk 0:01:39]}  Rd5 {[%clk 0:01:03]} 25. Be5 {[%clk 0:01:28]}  Ke7 {[%clk 0:00:46]} 26. Rxd5 {[%clk 0:01:17]}  Nxd5 {[%clk 0:00:43]} 27. Bxg7 {[%clk 0:01:15]}  f6 {[%clk 0:00:41]} 28. c4 {[%clk 0:00:53]}  Nb6 {[%clk 0:00:38]} 29. g4 {[%clk 0:00:44]}  Nxc4 {[%clk 0:00:37]} 30. h4 {[%clk 0:00:45]}  a4 {[%clk 0:00:33]} 31. h5 {[%clk 0:00:44]}  gxh5 {[%clk 0:00:33]} 32. gxh5 {[%clk 0:00:44]}  Kf7 {[%clk 0:00:33]} 33. Bh6 {[%clk 0:00:39]}  Ne5 {[%clk 0:00:32]} 34. Kf2 {[%clk 0:00:37]}  c5 {[%clk 0:00:30]} 35. Be3 {[%clk 0:00:34]}  Nd3+ {[%clk 0:00:29]} 36. Ke2 {[%clk 0:00:33]}  Nb4 {[%clk 0:00:27]} 37. a3 {[%clk 0:00:27]}  Na6 {[%clk 0:00:25]} 38. Kd3 {[%clk 0:00:28]}  Nc7 {[%clk 0:00:13]} 39. Kc4 {[%clk 0:00:26]}  Kg7 {[%clk 0:00:12]} 40. Kxc5 {[%clk 0:00:25]} 1-0


[Site "https://www.chess.com"]

[Event "Titled Tuesday Blitz April 11 Early 2023"]
[White "Biriukov, Ilja"]
[Black "Kopczynski, Michal"]
[WhiteFideId "4113373"]
[BlackFideId "1124200"]
[WhiteElo "2426"]
[BlackElo "2212"]
[Result "0-1"]
[Round "08"]
[TimeControl "180+2"]
[Date "2023.04.11"]
[WhiteClock "0:00:20"]
[BlackClock "0:00:08"]

1. e4 {[%clk 0:02:56]}  c5 {[%clk 0:03:00]} 2. b4 {[%clk 0:02:55]}  cxb4 {[%clk 0:02:59]} 3. a3 {[%clk 0:02:56]}  bxa3 {[%clk 0:02:59]} 4. Nxa3 {[%clk 0:02:56]}  e5 {[%clk 0:02:57]} 5. f4 {[%clk 0:02:55]}  d6 {[%clk 0:02:54]} 6. Nf3 {[%clk 0:02:55]}  Nc6 {[%clk 0:02:54]} 7. Bc4 {[%clk 0:02:48]}  Be6 {[%clk 0:02:51]} 8. Bxe6 {[%clk 0:02:31]}  fxe6 {[%clk 0:02:52]} 9. Ng5 {[%clk 0:02:31]}  exf4 {[%clk 0:02:48]} 10. Nxe6 {[%clk 0:02:24]}  Qh4+ {[%clk 0:02:35]} 11. Kf1 {[%clk 0:02:24]}  Kd7 {[%clk 0:02:10]} 12. d4 {[%clk 0:02:09]}  Kxe6 {[%clk 0:02:02]} 13. d5+ {[%clk 0:02:09]}  Kd7 {[%clk 0:02:03]} 14. dxc6+ {[%clk 0:02:10]}  bxc6 {[%clk 0:02:03]} 15. Nc4 {[%clk 0:02:08]}  Nf6 {[%clk 0:01:55]} 16. Ne5+ {[%clk 0:01:58]}  Kc7 {[%clk 0:01:50]} 17. Nf3 {[%clk 0:01:55]}  Qh5 {[%clk 0:01:50]} 18. Bxf4 {[%clk 0:01:49]}  Nxe4 {[%clk 0:01:49]} 19. Qd4 {[%clk 0:01:35]}  Nc5 {[%clk 0:01:02]} 20. Rd1 {[%clk 0:01:18]}  Qd5 {[%clk 0:00:59]} 21. Qxd5 {[%clk 0:01:09]}  cxd5 {[%clk 0:01:00]} 22. Rxd5 {[%clk 0:01:09]}  Ne6 {[%clk 0:00:57]} 23. Bg3 {[%clk 0:01:04]}  Rb8 {[%clk 0:00:49]} 24. Kf2 {[%clk 0:01:03]}  Rb2 {[%clk 0:00:49]} 25. Rc1 {[%clk 0:00:59]}  Be7 {[%clk 0:00:48]} 26. Kg1 {[%clk 0:00:57]}  Rhb8 {[%clk 0:00:46]} 27. h3 {[%clk 0:00:55]}  Rb1 {[%clk 0:00:46]} 28. Rxb1 {[%clk 0:00:54]}  Rxb1+ {[%clk 0:00:46]} 29. Kh2 {[%clk 0:00:53]}  Rb2 {[%clk 0:00:46]} 30. c4 {[%clk 0:00:52]}  Rc2 {[%clk 0:00:40]} 31. c5 {[%clk 0:00:44]}  Rxc5 {[%clk 0:00:39]} 32. Rd1 {[%clk 0:00:43]}  a5 {[%clk 0:00:37]} 33. Ra1 {[%clk 0:00:43]}  Kb6 {[%clk 0:00:36]} 34. Re1 {[%clk 0:00:42]}  Ng5 {[%clk 0:00:17]} 35. Rxe7 {[%clk 0:00:42]}  Nxf3+ {[%clk 0:00:17]} 36. gxf3 {[%clk 0:00:41]}  Rc2+ {[%clk 0:00:18]} 37. Kg1 {[%clk 0:00:41]}  d5 {[%clk 0:00:16]} 38. Rxg7 {[%clk 0:00:38]}  a4 {[%clk 0:00:16]} 39. Rxh7 {[%clk 0:00:38]}  a3 {[%clk 0:00:17]} 40. Be5 {[%clk 0:00:32]}  a2 {[%clk 0:00:15]} 41. Bd4+ {[%clk 0:00:28]}  Kb5 {[%clk 0:00:14]} 42. Ra7 {[%clk 0:00:27]}  Kc4 {[%clk 0:00:13]} 43. Bg7 {[%clk 0:00:24]}  d4 {[%clk 0:00:11]} 44. Rc7+ {[%clk 0:00:23]}  Kd3 {[%clk 0:00:06]} 45. Rxc2 {[%clk 0:00:22]}  a1=Q+ {[%clk 0:00:06]} 46. Kg2 {[%clk 0:00:21]}  Kxc2 {[%clk 0:00:07]} 47. Bxd4 {[%clk 0:00:20]}  Qxd4 {[%clk 0:00:07]} 48. h4 {[%clk 0:00:20]}  Qg7+ {[%clk 0:00:07]} 49. Kh3 {[%clk 0:00:20]}  Kd3 {[%clk 0:00:08]} 0-1


[Site "https://www.chess.com"]

[Event "Titled Tuesday Blitz April 11 Early 2023"]
[White "Mazurkiewicz, Michal"]
[Black "Makhmudov, Shukhrat"]
[WhiteFideId "1124943"]
[BlackFideId "14200775"]
[WhiteElo "2054"]
[BlackElo "2135"]
[Result "1-0"]
[Round "08"]
[TimeControl "180+2"]
[Date "2023.04.11"]
[WhiteClock "0:00:20"]
[BlackClock "0:00:45"]

1. e4 {[%clk 0:02:59]}  e5 {[%clk 0:02:58]} 2. Nf3 {[%clk 0:03:00]}  Nc6 {[%clk 0:02:55]} 3. Bb5 {[%clk 0:02:59]}  a6 {[%clk 0:02:55]} 4. Bxc6 {[%clk 0:03:00]}  dxc6 {[%clk 0:02:56]} 5. O-O {[%clk 0:03:00]}  Bg4 {[%clk 0:02:55]} 6. h3 {[%clk 0:03:01]}  h5 {[%clk 0:02:55]} 7. d3 {[%clk 0:03:01]}  Qf6 {[%clk 0:02:54]} 8. Nbd2 {[%clk 0:03:01]}  Ne7 {[%clk 0:02:54]} 9. Re1 {[%clk 0:03:01]}  Ng6 {[%clk 0:02:54]} 10. d4 {[%clk 0:03:02]}  Nf4 {[%clk 0:02:55]} 11. dxe5 {[%clk 0:02:42]}  Qg6 {[%clk 0:02:53]} 12. Nh4 {[%clk 0:02:41]}  Bxd1 {[%clk 0:02:50]} 13. Nxg6 {[%clk 0:02:41]}  Nxg6 {[%clk 0:02:51]} 14. Rxd1 {[%clk 0:02:41]}  O-O-O {[%clk 0:02:46]} 15. Re1 {[%clk 0:02:41]}  Bb4 {[%clk 0:02:44]} 16. c3 {[%clk 0:02:40]}  Bc5 {[%clk 0:02:43]} 17. Nf3 {[%clk 0:02:01]}  Rhe8 {[%clk 0:02:31]} 18. Be3 {[%clk 0:02:01]}  Bxe3 {[%clk 0:02:29]} 19. Rxe3 {[%clk 0:02:02]}  Nf4 {[%clk 0:02:23]} 20. Ng5 {[%clk 0:01:19]}  Re7 {[%clk 0:02:19]} 21. Rf3 {[%clk 0:01:17]}  Nd3 {[%clk 0:01:49]} 22. Rxf7 {[%clk 0:01:05]}  Rxe5 {[%clk 0:01:48]} 23. Rxg7 {[%clk 0:01:03]}  Nxb2 {[%clk 0:01:45]} 24. f4 {[%clk 0:00:41]}  Rc5 {[%clk 0:01:44]} 25. f5 {[%clk 0:00:39]}  Rxc3 {[%clk 0:01:32]} 26. f6 {[%clk 0:00:37]}  Rcd3 {[%clk 0:01:17]} 27. Ne6 {[%clk 0:00:30]}  Rd1+ {[%clk 0:01:11]} 28. Rxd1 {[%clk 0:00:30]}  Rxd1+ {[%clk 0:01:11]} 29. Kh2 {[%clk 0:00:31]}  Rf1 {[%clk 0:00:57]} 30. f7 {[%clk 0:00:31]}  Nd3 {[%clk 0:00:50]} 31. f8=R+ {[%clk 0:00:29]}  Rxf8 {[%clk 0:00:49]} 32. Nxf8 {[%clk 0:00:29]}  Nc5 {[%clk 0:00:49]} 33. e5 {[%clk 0:00:27]}  b5 {[%clk 0:00:48]} 34. e6 {[%clk 0:00:27]}  Nxe6 {[%clk 0:00:47]} 35. Nxe6 {[%clk 0:00:28]}  Kb7 {[%clk 0:00:46]} 36. Rxc7+ {[%clk 0:00:26]}  Kb6 {[%clk 0:00:47]} 37. Rh7 {[%clk 0:00:25]}  a5 {[%clk 0:00:46]} 38. Rxh5 {[%clk 0:00:26]}  b4 {[%clk 0:00:47]} 39. Re5 {[%clk 0:00:25]}  a4 {[%clk 0:00:48]} 40. h4 {[%clk 0:00:25]}  c5 {[%clk 0:00:48]} 41. Nxc5 {[%clk 0:00:24]}  Kb5 {[%clk 0:00:46]} 42. h5 {[%clk 0:00:22]}  b3 {[%clk 0:00:44]} 43. axb3 {[%clk 0:00:22]}  a3 {[%clk 0:00:45]} 44. h6 {[%clk 0:00:20]}  a2 {[%clk 0:00:45]} 45. Re1 {[%clk 0:00:20]} 1-0


[Site "https://www.chess.com"]

[Event "Titled Tuesday Blitz April 11 Early 2023"]
[White "Mazarini41"]
[Black "Coelho, Ramyres Santana"]
[BlackFideId "2120690"]
[WhiteElo "2415"]
[BlackElo "1888"]
[Result "1-0"]
[Round "08"]
[TimeControl "180+2"]
[Date "2023.04.11"]
[WhiteClock "0:00:56"]
[BlackClock "0:00:01"]

1. d4 {[%clk 0:03:00]}  Nf6 {[%clk 0:02:57]} 2. c4 {[%clk 0:03:00]}  g6 {[%clk 0:02:56]} 3. Nf3 {[%clk 0:02:59]}  Bg7 {[%clk 0:02:56]} 4. g3 {[%clk 0:03:00]}  d6 {[%clk 0:02:56]} 5. Bg2 {[%clk 0:03:00]}  O-O {[%clk 0:02:57]} 6. O-O {[%clk 0:03:01]}  Nc6 {[%clk 0:02:57]} 7. Nc3 {[%clk 0:03:01]}  e5 {[%clk 0:02:57]} 8. dxe5 {[%clk 0:02:51]}  Nxe5 {[%clk 0:02:53]} 9. b3 {[%clk 0:02:41]}  Nxf3+ {[%clk 0:02:49]} 10. Bxf3 {[%clk 0:02:41]}  Ng4 {[%clk 0:02:46]} 11. Bb2 {[%clk 0:02:38]}  Ne5 {[%clk 0:02:46]} 12. Bg2 {[%clk 0:02:38]}  Nc6 {[%clk 0:02:33]} 13. Qd2 {[%clk 0:02:37]}  Be6 {[%clk 0:02:32]} 14. Nd5 {[%clk 0:02:36]}  Bxb2 {[%clk 0:02:28]} 15. Qxb2 {[%clk 0:02:36]}  Bxd5 {[%clk 0:02:28]} 16. cxd5 {[%clk 0:02:36]}  Ne5 {[%clk 0:02:22]} 17. Rac1 {[%clk 0:02:34]}  Qf6 {[%clk 0:02:20]} 18. Qd2 {[%clk 0:02:25]}  Qe7 {[%clk 0:02:11]} 19. Rc3 {[%clk 0:02:22]}  f5 {[%clk 0:02:09]} 20. Rfc1 {[%clk 0:02:22]}  Rac8 {[%clk 0:02:03]} 21. Qd4 {[%clk 0:02:16]}  Ng4 {[%clk 0:01:49]} 22. e3 {[%clk 0:02:05]}  b6 {[%clk 0:01:45]} 23. Bf1 {[%clk 0:01:54]}  Ne5 {[%clk 0:01:38]} 24. Kg2 {[%clk 0:01:49]}  Ng4 {[%clk 0:01:15]} 25. Ba6 {[%clk 0:01:42]}  Qe4+ {[%clk 0:01:14]} 26. f3 {[%clk 0:01:24]}  Qxd4 {[%clk 0:01:03]} 27. exd4 {[%clk 0:01:24]}  Nf6 {[%clk 0:00:53]} 28. Bxc8 {[%clk 0:01:23]}  Rxc8 {[%clk 0:00:53]} 29. Rxc7 {[%clk 0:01:23]}  Re8 {[%clk 0:00:50]} 30. Rc8 {[%clk 0:01:23]}  Kf8 {[%clk 0:00:47]} 31. Rxe8+ {[%clk 0:01:22]}  Kxe8 {[%clk 0:00:48]} 32. Rc7 {[%clk 0:01:22]}  Nxd5 {[%clk 0:00:48]} 33. Rxa7 {[%clk 0:01:22]}  h6 {[%clk 0:00:45]} 34. a4 {[%clk 0:01:21]}  Ne3+ {[%clk 0:00:39]} 35. Kh3 {[%clk 0:01:18]}  Nc2 {[%clk 0:00:40]} 36. Rg7 {[%clk 0:01:16]}  Nxd4 {[%clk 0:00:38]} 37. Rxg6 {[%clk 0:01:15]}  Ke7 {[%clk 0:00:31]} 38. Rxh6 {[%clk 0:01:14]}  Nxf3 {[%clk 0:00:28]} 39. Rh7+ {[%clk 0:01:12]}  Ke6 {[%clk 0:00:27]} 40. Rb7 {[%clk 0:01:13]}  d5 {[%clk 0:00:16]} 41. Rxb6+ {[%clk 0:01:13]}  Kd7 {[%clk 0:00:15]} 42. a5 {[%clk 0:01:13]}  d4 {[%clk 0:00:14]} 43. a6 {[%clk 0:01:06]}  d3 {[%clk 0:00:05]} 44. a7 {[%clk 0:01:03]}  d2 {[%clk 0:00:05]} 45. a8=Q {[%clk 0:00:56]}  d1=Q {[%clk 0:00:01]} 46. Qa7+ {[%clk 0:00:56]}  Kd8 {[%clk 0:00:01]} 47. Rb8# {[%clk 0:00:56]} 1-0


[Site "https://www.chess.com"]

[Event "Titled Tuesday Blitz April 11 Early 2023"]
[White "Halldorsson, Halldor"]
[Black "morozcoma"]
[WhiteFideId "2301369"]
[WhiteElo "2190"]
[BlackElo "2277"]
[Result "0-1"]
[Round "08"]
[TimeControl "180+2"]
[Date "2023.04.11"]
[WhiteClock "0:01:52"]
[BlackClock "0:01:37"]

1. e4 {[%clk 0:03:00]}  e5 {[%clk 0:03:00]} 2. Nf3 {[%clk 0:02:59]}  Nc6 {[%clk 0:03:01]} 3. Bb5 {[%clk 0:02:59]}  a6 {[%clk 0:03:00]} 4. Ba4 {[%clk 0:02:58]}  Nf6 {[%clk 0:02:58]} 5. O-O {[%clk 0:02:58]}  Nxe4 {[%clk 0:02:57]} 6. d4 {[%clk 0:02:57]}  b5 {[%clk 0:02:54]} 7. Bb3 {[%clk 0:02:57]}  d5 {[%clk 0:02:55]} 8. dxe5 {[%clk 0:02:56]}  Be6 {[%clk 0:02:56]} 9. c3 {[%clk 0:02:54]}  Be7 {[%clk 0:02:54]} 10. Nbd2 {[%clk 0:02:54]}  Nc5 {[%clk 0:02:53]} 11. Bc2 {[%clk 0:02:53]}  O-O {[%clk 0:02:52]} 12. Nd4 {[%clk 0:02:46]}  Qd7 {[%clk 0:02:36]} 13. f4 {[%clk 0:02:45]}  f5 {[%clk 0:02:33]} 14. Nxe6 {[%clk 0:02:44]}  Qxe6 {[%clk 0:02:33]} 15. b4 {[%clk 0:02:44]}  Ne4 {[%clk 0:02:32]} 16. Nxe4 {[%clk 0:02:44]}  fxe4 {[%clk 0:02:32]} 17. Bb3 {[%clk 0:02:45]}  Rad8 {[%clk 0:02:32]} 18. Be3 {[%clk 0:02:43]}  Kh8 {[%clk 0:02:31]} 19. Qc2 {[%clk 0:02:39]}  Qf5 {[%clk 0:02:19]} 20. Rad1 {[%clk 0:02:37]}  d4 {[%clk 0:02:18]} 21. cxd4 {[%clk 0:02:36]}  Nxb4 {[%clk 0:02:18]} 22. Qxc7 {[%clk 0:02:32]}  Rd7 {[%clk 0:02:17]} 23. Qc3 {[%clk 0:02:27]}  Nd3 {[%clk 0:02:16]} 24. Rxd3 {[%clk 0:02:23]}  exd3 {[%clk 0:02:16]} 25. d5 {[%clk 0:02:23]}  Qe4 {[%clk 0:02:14]} 26. Qd4 {[%clk 0:02:19]}  Qxd4 {[%clk 0:02:10]} 27. Bxd4 {[%clk 0:02:20]}  d2 {[%clk 0:02:10]} 28. Rd1 {[%clk 0:02:19]}  Rxf4 {[%clk 0:02:09]} 29. Be3 {[%clk 0:02:19]}  Re4 {[%clk 0:02:05]} 30. e6 {[%clk 0:02:19]}  Rc7 {[%clk 0:01:59]} 31. Bxd2 {[%clk 0:02:16]}  Rd4 {[%clk 0:01:58]} 32. Be3 {[%clk 0:02:03]}  Rxd1+ {[%clk 0:01:44]} 33. Bxd1 {[%clk 0:02:03]}  Bd6 {[%clk 0:01:43]} 34. g3 {[%clk 0:02:01]}  Kg8 {[%clk 0:01:43]} 35. Kf2 {[%clk 0:01:59]}  Kf8 {[%clk 0:01:39]} 36. Bg5 {[%clk 0:01:55]}  h6 {[%clk 0:01:38]} 37. Kf3 {[%clk 0:01:52]}  hxg5 {[%clk 0:01:37]} 0-1


[Site "https://www.chess.com"]

[Event "Titled Tuesday Blitz April 11 Early 2023"]
[White "Womacka, Mathias"]
[Black "Prudnykova, Olga"]
[WhiteFideId "4611390"]
[BlackFideId "14121093"]
[WhiteElo "2377"]
[BlackElo "2113"]
[Result "1-0"]
[Round "08"]
[TimeControl "180+2"]
[Date "2023.04.11"]
[WhiteClock "0:00:41"]
[BlackClock "0:00:09"]

1. e4 {[%clk 0:03:00]}  c5 {[%clk 0:02:58]} 2. Nf3 {[%clk 0:02:58]}  Nf6 {[%clk 0:02:56]} 3. Nc3 {[%clk 0:02:56]}  e6 {[%clk 0:02:54]} 4. d4 {[%clk 0:02:53]}  cxd4 {[%clk 0:02:49]} 5. Nxd4 {[%clk 0:02:54]}  Nc6 {[%clk 0:02:50]} 6. Nxc6 {[%clk 0:02:50]}  bxc6 {[%clk 0:02:49]} 7. e5 {[%clk 0:02:50]}  Nd5 {[%clk 0:02:48]} 8. Ne4 {[%clk 0:02:50]}  Qc7 {[%clk 0:02:43]} 9. f4 {[%clk 0:02:50]}  Rb8 {[%clk 0:02:41]} 10. Bd3 {[%clk 0:02:44]}  Qb6 {[%clk 0:01:57]} 11. Qe2 {[%clk 0:02:34]}  Be7 {[%clk 0:01:56]} 12. c4 {[%clk 0:02:31]}  f5 {[%clk 0:01:48]} 13. cxd5 {[%clk 0:02:05]}  fxe4 {[%clk 0:01:45]} 14. Bxe4 {[%clk 0:02:03]}  cxd5 {[%clk 0:01:42]} 15. Qh5+ {[%clk 0:02:02]}  Kd8 {[%clk 0:01:31]} 16. Bd3 {[%clk 0:02:00]}  Bb4+ {[%clk 0:01:30]} 17. Ke2 {[%clk 0:01:50]}  Ba6 {[%clk 0:01:26]} 18. Qf3 {[%clk 0:01:44]}  g6 {[%clk 0:01:18]} 19. a3 {[%clk 0:01:31]}  Bf8 {[%clk 0:01:08]} 20. b4 {[%clk 0:01:30]}  Bxd3+ {[%clk 0:01:07]} 21. Qxd3 {[%clk 0:01:28]}  a6 {[%clk 0:00:52]} 22. Be3 {[%clk 0:01:28]}  Qb5 {[%clk 0:00:53]} 23. Rhc1 {[%clk 0:01:21]}  d6 {[%clk 0:00:38]} 24. Bd4 {[%clk 0:01:16]}  Rg8 {[%clk 0:00:35]} 25. Qxb5 {[%clk 0:01:06]}  axb5 {[%clk 0:00:34]} 26. Rc6 {[%clk 0:01:05]}  Kd7 {[%clk 0:00:34]} 27. Ra6 {[%clk 0:01:02]}  Be7 {[%clk 0:00:20]} 28. Ra7+ {[%clk 0:00:56]}  Ke8 {[%clk 0:00:20]} 29. Rc1 {[%clk 0:00:53]}  dxe5 {[%clk 0:00:17]} 30. Bxe5 {[%clk 0:00:52]}  Rd8 {[%clk 0:00:17]} 31. Rcc7 {[%clk 0:00:50]}  Bd6 {[%clk 0:00:17]} 32. Bxd6 {[%clk 0:00:43]}  Rxd6 {[%clk 0:00:16]} 33. Re7+ {[%clk 0:00:42]}  Kf8 {[%clk 0:00:16]} 34. Rxh7 {[%clk 0:00:43]}  Rd8 {[%clk 0:00:09]} 35. Rhf7+ {[%clk 0:00:41]} 1-0


[Site "https://www.chess.com"]